Cogmind - Beta 13 @@@ ROGUE MODE // 2024.06.18 @ 12:57:12 // Winter2019/RPGLIKE Player: Minty Result: Destroyed by Y-45 Defender with Beam Rifle Performance ------------- Evolutions (1) 500 Regions Visited (2) 400 Robots Destroyed (26) 130 Value Destroyed (546) 546 Prototype IDs (4) 80 Alien Tech Used (0) 0 Bonus (0) 0 TOTAL SCORE: 1656 Bonus ------- None Cogmind --------- Core Integrity 0/700 Matter 271/500 Energy 275/275 System Corruption 0% Temperature Cool (9) Movement Walking (120) Location -9/Materials Parts ------- > --- POWER (1) -------- Deuterium Engine > --- PROPULSION (2) --- Aluminum Leg Aluminum Leg > --- UTILITY (3) ------ High-capacity Matter Pod Structural Scanner Improved Terrain Scanner > --- WEAPON (2) ------- Mini Grenade Launcher Hammer > --- INVENTORY (2) ---- Cooling System Mini Grenade Launcher Peak State ------------ > --- POWER ------------ Deuterium Engine > --- PROPULSION ------- Aluminum Leg Aluminum Leg > --- UTILITY ---------- High-capacity Matter Pod Structural Scanner Improved Terrain Scanner > --- WEAPON ----------- Mini Grenade Launcher Hammer > --- INVENTORY -------- Cooling System Mini Grenade Launcher [Rating: 13] Favorites ----------- Power Ion Engine Engine Ion Engine Propulsion Aluminum Leg Treads Improved Treads Leg Aluminum Leg Utility Structural Scanner Device Structural Scanner Storage High-capacity Matter Pod Weapon Mini Grenade Launcher Ballistic Gun Assault Rifle Launcher Mini Grenade Launcher Impact Weapon Hammer Build | -11 -10 -9 ------- Run | Yrd Mat Mat Slots Evolved 4 | 4 . . Power . | . . . Propulsion 1 | 1 . . Utility 2 | 2 . . Weapon 1 | 1 . . Parts Attached 21 | 2 17 2 Power 3 | . 2 1 Engine 3 | . 2 1 Core . | . . . Reactor . | . . . Propulsion 6 | 1 5 . Treads 2 | . 2 . Leg 4 | 1 3 . Wheel . | . . . Hover . | . . . Flight . | . . . Utility 7 | . 6 1 Device 6 | . 5 1 Storage 1 | . 1 . Processor . | . . . Hackware . | . . . Protection . | . . . Artifact . | . . . Weapon 5 | 1 4 . Energy Gun . | . . . Energy Cannon . | . . . Ballistic Gun 1 | 1 . . Ballistic Cannon . | . . . Launcher 3 | . 3 . Special Weapon . | . . . Impact Weapon 1 | . 1 . Slashing Weapon . | . . . Piercing Weapon . | . . . Special Melee Weapon . | . . . Unidentified Prototypes . | . . . Parts Lost 1 | . 1 . Power 1 | . 1 . Propulsion . | . . . Utility . | . . . Weapon . | . . . Highest Loss Streak 1 | . 1 . To Critical Strikes . | . . . Average Slot Usage (%) 91 | . 90 100 Engine 8 | . 7 12 Leg 24 | . 24 25 Device 22 | . 22 25 Storage 10 | . 10 12 Ballistic Gun 3 | . 3 . Launcher 16 | . 16 12 Impact Weapon 4 | . 3 12 Naked Turns . | . . . Heaviest Build 18 | 8 16 18 Greatest Support 46 | 20 46 25 Greatest Overweight (x) 1 | . 1 . Average Overweight (x) . | . . . Largest Inventory Capacity 2 | . 2 2 Average Capacity 1 | . . 2 Most Carried 2 | . 2 2 Average Carried . | . . 1 Final Capacity 2 | . 2 2 Final Carried 2 | . 2 2 Class Distribution -------------------- 48% | Mutant 22% | Assassin 18% | Skirmisher 11% | Hacker-Assassin Dominant Class ---------------- Mutant | -10/Materials Hacker-Assassin | -9/Materials Resources | -11 -10 -9 ----------- Run | Yrd Mat Mat Matter Collected 705 | 200 341 164 Remotely . | . . . Salvage Created 360 | . 197 163 Parts 42 | . 19 23 Haulers Intercepted 2 | . 2 . Recyclers Shooed 1 | . 1 . Parts Field Recycled . | . . . Retrieved Matter . | . . . Parts Self-Destructed . | . . . Prevented . | . . . Kills | -11 -10 -9 ------- Run | Yrd Mat Mat Combat Hostiles Destroyed 15 | . 7 8 Melee 1 | . . 1 AOE 14 | . 7 7 Classes Destroyed 7 | . 6 1 Builder 4 | . 1 3 Tunneler 3 | . 3 . Hauler 2 | . 2 . Watcher 2 | . 2 . Swarmer 7 | . 3 4 Grunt 7 | . 4 3 Sentry 1 | . . 1 Best Kill Streak 10 | . 5 10 Combat Bots Only 7 | . 3 7 Max Kills in Single Turn 4 | . 2 4 Gunslinging . | . . . Exploded 3 | . 2 3 Melee 1 | . . 1 Uniques/NPCs Destroyed . | . . . Combat | -11 -10 -9 -------- Run | Yrd Mat Mat Hostile Shots Fired 64 | . 25 39 Missed 14 | . 6 8 Damage Taken 963 | . 440 523 Core 775 | . 353 422 Absorbed by Shields . | . . . Redirected to Core 600 | . 277 323 Regen/Repaired (Parts) 37 | . 37 . Core Remaining (%) 78 | 100 56 . Volleys Fired 29 | . 21 8 Largest 2 | . 2 1 Hottest 60 | . 60 30 Shots Fired 46 | . 38 8 Gun 16 | . 16 . Cannon . | . . . Launcher 30 | . 22 8 Special . | . . . Kinetic 16 | . 16 . Thermal . | . . . Explosive 30 | . 22 8 Electromagnetic . | . . . Robot Hit Streak 5 | . 5 3 Robot Miss Streak 5 | . 5 4 Penetration Max . | . . . Secondary Targets . | . . . Shots Hit Robots 25 | . 19 6 Core Hits 35 | . 21 14 Critical Kills . | . . . Critical Parts Destroyed 3 | . 2 1 Critical Strikes 3 | . 2 1 Smash 3 | . 2 1 Melee Attacks 13 | . 7 6 Impact 13 | . 7 6 Slashing . | . . . Piercing . | . . . Sneak Attacks 3 | . 2 1 Combat Hostiles 1 | . . 1 Follow-up Attacks . | . . . Damage Inflicted 1997 | . 1137 860 Guns 90 | . 90 . Cannons . | . . . Explosions 1696 | . 930 766 Melee 207 | . 113 94 Ramming 4 | . 4 . Kinetic 90 | . 90 . Thermal . | . . . Explosive 1696 | . 930 766 Electromagnetic . | . . . Impact 207 | . 113 94 Slashing . | . . . Piercing . | . . . Highest Corruption 1 | . 1 . Average Corruption 1 | . 1 . Corruption Purged . | . . . Corruption Blocked . | . . . Overload Shots . | . . . Overflow Damage 211 | . 157 54 Projectiles . | . . . Explosions 65 | . 61 4 Melee 146 | . 96 50 Knockbacks 1 | . . 1 Impact 1 | . . 1 Kinetic . | . . . Secondary . | . . . Self-Inflicted Damage 353 | . 175 178 Shots 14 | . 8 6 Rammed . | . . . Targets Rammed 1 | . 1 . Kicked 1 | . 1 . Crushed . | . . . Highest Temperature 23 | . 23 17 Average Temperature 14 | . 15 11 Received Heat Transfer 261 | . 117 144 Siege Activations . | . . . Robots Corrupted . | . . . Combat Hostiles . | . . . Parts Fried 2 | . 2 . Impact Corruptions 4 | . 3 1 Robots Melted . | . . . Combat Hostiles . | . . . Parts Melted . | . . . Heat Transferred . | . . . Parts Sabotaged . | . . . Parts Stolen . | . . . Parts Stripped . | . . . Power Chain Reactions 1 | . 1 . Alert | -11 -10 -9 ------- Run | Yrd Mat Mat Peak Influence 430 | . 430 323 Initial 105 | . . 105 Average 263 | . 284 145 Maximum Alert Level 2 | . 2 1 Low Security (%) 35 | 100 26 89 Level 1 62 | . 71 10 Level 2 1 | . 1 . Level 3 . | . . . Level 4 . | . . . Level 5 . | . . . High Security . | . . . Max Security . | . . . Squads Dispatched 1 | . . 1 Investigation 1 | . . 1 Extermination . | . . . Reinforcement . | . . . Assault . | . . . Garrison . | . . . Intercept . | . . . Searches Triggered . | . . . Construction Impeded . | . . . Haulers Reinforced . | . . . Active Scanning Responses . | . . . Cargo Convoy Interrupts . | . . . Stealth | -11 -10 -9 --------- Run | Yrd Mat Mat Distress Signals 2 | . 1 1 Communications Jammed . | . . . Distress Signals . | . . . Times Spotted 21 | . 12 9 Peak Tracking Total 5 | . 4 5 Tactical Retreats . | . . . Traps | -11 -10 -9 ------- Run | Yrd Mat Mat Traps Triggered 1 | . 1 . Indirectly . | . . . Trap Hack Attempts . | . . . Triggered . | . . . Disarmed . | . . . Reprogrammed 1 | . 1 . Reused . | . . . Traps Extracted . | . . . Installed . | . . . Triggered . | . . . Machines | -11 -10 -9 ---------- Run | Yrd Mat Mat Machines Disabled 9 | . 8 1 Max in Single Turn 2 | . 2 1 Machines Repaired . | . . . Machines Dismantled . | . . . Machines Sabotaged . | . . . Overloaded Fab Kills . | . . . Hacking | -11 -10 -9 --------- Run | Yrd Mat Mat Machines Accessed 10 | . 9 1 Terminals 7 | . 6 1 Fabricators . | . . . Repair Stations 1 | . 1 . Recycling Units 2 | . 2 . Scanalyzers . | . . . Garrison Access . | . . . Total Hacks 49 | . 42 7 Successful 36 | . 32 4 Failed 13 | . 10 3 Catastrophic . | . . . Database Lockouts . | . . . Manual 22 | . 15 7 Terminals 41 | . 34 7 Fabricators . | . . . Repair Stations 4 | . 4 . Recycling Units 4 | . 4 . Scanalyzers . | . . . Garrison Access . | . . . Terminal Hacks 19 | . 18 1 Record 1 | . 1 . Part Schematic 2 | . 2 . Prototype ID Bank 5 | . 5 . Branch Access Points 1 | . 1 . Emergency Access Points 1 | . 1 . Terminal Index 2 | . 1 1 Recycling Unit Index 1 | . 1 . Alert Level 1 | . 1 . Locate Traps 3 | . 3 . Reprogram Traps 1 | . 1 . Zone Layout 1 | . 1 . Fabricator Hacks . | . . . Repair Station Hacks 4 | . 4 . Scan Component 2 | . 2 . Repair 2 | . 2 . Recycling Unit Hacks 4 | . 4 . Process 1 | . 1 . Report Inventory 1 | . 1 . Retrieve Matter 1 | . 1 . Retrieve Components 1 | . 1 . Scanalyzer . | . . . Garrison Access Hacks . | . . . Unauthorized Hacks 9 | . 6 3 Terminals 9 | . 6 3 Track 2 | . 1 1 Botnet 5 | . 4 1 Operators 2 | . 1 1 Fabricators . | . . . Repair Stations . | . . . Recycling Units . | . . . Scanalyzers . | . . . Garrison Access . | . . . Data Cores Recovered . | . . . Used . | . . . Hacking Detections 8 | . 7 1 Full Trace Events 3 | . 2 1 Feedback Events . | . . . Feedback Blocked . | . . . Robot Schematics Acquired . | . . . Robots Built . | . . . Authchips . | . . . Time . | . . . Total Robot Build Rating . | . . . Part Schematics Acquired 2 | . 2 . Parts Built . | . . . Authchips . | . . . Time . | . . . Total Part Build Rating . | . . . Parts Repaired 2 | . 2 . Time 52 | . 52 . Parts Recycled . | . . . Recycled Matter 20 | . 20 . Retrieved Matter 20 | . 20 . Retrieved Components 3 | . 3 . Parts Scanalyzed . | . . . Part Schematics Acquired . | . . . Parts Damaged . | . . . Bothacking | -11 -10 -9 ------------ Run | Yrd Mat Mat Used RIF Installer . | . . . Robots Hacked . | . . . Non-combat . | . . . Combat . | . . . Robot Hacks Applied . | . . . Relay Couplers Released . | . . . Fabnet Peak Effective % . | . . . Robots Rewired . | . . . Allies Hacked . | . . . Hacks Repelled . | . . . Allies | -11 -10 -9 -------- Run | Yrd Mat Mat Total Allies . | . . . Largest Group . | . . . Highest-Rated Group . | . . . Highest-Rated Ally . | . . . Total Orders . | . . . Ally Attacks . | . . . Total Damage . | . . . Kills . | . . . Allies Corrupted . | . . . Allies Melted . | . . . Intel | -11 -10 -9 ------- Run | Yrd Mat Mat Robot Analysis Total . | . . . Derelict Logs Recovered . | . . . Drone Launches . | . . . Drone Recoveries . | . . . Exploration | -11 -10 -9 ------------- Run | Yrd Mat Mat Turns Passed 951 | 13 820 118 Spaces Moved 612 | 9 546 57 Core . | . . . Treads 7 | . 7 . Legs 605 | 9 539 57 Wheels . | . . . Hover . | . . . Flight . | . . . Fastest Speed 120 | 120 120 120 Average Speed 120 | 120 120 120 Slowest Speed 190 | 120 190 120 Overloaded Moves . | . . . Propulsion Burnouts . | . . . Robots Hopped . | . . . Cave-ins Triggered . | . . . Exploration Rate (%) 32 | 2 85 10 Regions Visited 2 Branch Regions . Pre-discovered Areas . | . . . Known Exits Taken . | . . . Unknown Exits Taken 2 | 1 1 . Scrap Searched . | . . . Spaces Dug . | . . . Terrain Destroyed 229 | . 181 48 Melee . | . . . Projectile . | . . . AOE 229 | . 181 48 Terrain Rammed . | . . . Walls Destroyed . | . . . Machines Disabled . | . . . Actions | -11 -10 -9 --------- Run | Yrd Mat Mat Total 755 | 10 654 91 Wait 62 | . 48 14 Move 610 | 8 545 57 Hop . | . . . Pick Up 3 | . 2 1 Fast Attach 17 | 2 15 . Attach . | . . . Detach . | . . . Swap 4 | . 2 2 Drop 13 | . 10 3 Fire 29 | . 21 8 Melee 13 | . 7 6 Ram . | . . . Kick 1 | . 1 . Crush . | . . . Escape Stasis . | . . . Rewire . | . . . Trap . | . . . Miscellaneous 3 | . 3 . Route ------- -11/Scrapyard -10/Materials (discovered 4 exits: *Mat x3 / *Min) -9/Materials History --------- Turn | Location | Event 1 | -11/Scrapyard | Upgraded with Propulsion slot (x1) 1 | -11/Scrapyard | Upgraded with Utility slot (x2) 1 | -11/Scrapyard | Upgraded with Weapon slot (x1) 1 | -11/Scrapyard | Discovered new exit (range 1) 14 | -11/Scrapyard | Entered Materials 168 | -10/Materials | Identified exit to Mines 177 | -10/Materials | Discovered new exit (range 16) 227 | -10/Materials | Discovered new exit (range 15) 302 | -10/Materials | Build established: Mutant 353 | -10/Materials | Discovered new exit (range 11) 426 | -10/Materials | Reached level 2 691 | -10/Materials | Repaired Ion Engine 717 | -10/Materials | Repaired Terrain Scanner 834 | -10/Materials | Entered another Materials area 836 | -9/Materials | Reached level 3 929 | -9/Materials | Core integrity fell below 50% 943 | -9/Materials | Core integrity fell below 20% 952 | -9/Materials | Destroyed by Y-45 Defender with Beam Rifle Last Messages --------------- 00930_ R-06 Scavenger collects Hvy. Assault Rifle. 00932_ Protomatter-26 decays. 00933_ K-01 Serf collects debris. 00934_ G-34 Mercenary misfires. 00936_ K-01 Serf collects debris. 00940_ G-34 Mercenary destroyed. 00940_ Destroyed Welding Torch. 00941_ U-05 Engineer sends out distress signal. 00942_ U-05 Engineer lays Concrete. 00943_ U-05 Engineer builds a Wall. 00943_ R-06 Scavenger collects Ion Engine. 00944_ G-34 Mercenary destroyed. 00948_ U-05 Engineer destroyed. 00948_ S-10 Pest destroyed. 00950_ Destroyed Lgt. Ion Engine. 00950_ T-07 Excavator is excavating. 00952_ U-05 Engineer destroyed. 00952_ Material Processor disabled. 00952_ S-10 Pest destroyed. 00952_ U-05 Engineer destroyed. Map ----- +----------------------------------------------------+ | ???????## """" ???#????????????? | | ????#??## """" ?????????????????? | | ??##???## """" ?? ??????????????? | | ???????## ?? ??????????????? | | ?#?##??#####+########## ? ????????????? | | ???????### ######## ###### ???##?#????????? | | ??????#?## = # # # # ???????????????? | | ???? ???## # """ # # # ???##??????????? | | ?????#?### """ # """ + + # ??????????????? | | #?????#?## """ + """ !# # # ?#????? ??????? | | #??????### """ # # # + ? ???????????? | | ???????###+###### # # * # # ???????????? | | ? ? #?### ############# # # ?+????????????? | | #?????#### ###### # # # #? "?????????? | | ??????#### ?##### """ [#u # # ?# ? ??????? | | ??????#??#?###?## "T" + r###### ###?##???????? | | ????????##?#?#### !# ###### ??? ???????? | | ????????? ?##### # ######? ? ???? ?????? | | ?????????#?#?#?## # !!## ? ???????? | | ?????????#?############# !!## ? ???????? | | ????????#?############## **## ?? ? ???????? | | ??????????#### / # *## ???? ????????? | | ??????????#?## Y !!## ??????????? | | ?????????? + !!##? ??? ????????? | | ??????????#### = ! ## ? ? ???????? | | ?????????#?######### @ ## ?? ???????? | | ??????????? ?? ## [ # ? ? ????????? | | ??????????""? "?? ## % % ! ??? ???????? | | ???????????"???R"? # [ """""????????? | | ??????????""??""" ## [ """? ???????? | | ????????????? ? ?## =*"""?????????? | | ??????????? ? ? ?######## =%%"""?????????? | | ????????????????? ## ##### !=|??? ???????? | | ????????????? ?# ? #?###### t !! ??????????? | | ????????????????##?# ###?##### "???????????? | | ??????????????? ? ? ???#??##### ""???????????? | | ???????????????? ?? #??####### "????????????? | | ???????????????##? ? ###??#?#? ? ??????????????? | | ????????????????#?????#?#?#???## ???????????????? | | ????????????????????#??##?#?#??? ????????????????? | | ???????????????????? ???? ? ????????????????o???? | | ?????????????????????????????????????????????????? | | ?????????????????????????????????????????????????? | | ?????????????????????????????????????????????????? | | ?????????????????????????????????????????????????? | | ?????????????????????????????????????????????????? | | ?????????????????????????????????????????????????? | | ?????????????????????????????????????????????????? | | ?????????????????????????????????????????????????? | | ?????????????????????????????????????????????????? | +----------------------------------------------------+ Best States ------------- Heat Dissipation 31 Energy Generation 14 Energy Capacity 275 Matter Stores 371 Matter Capacity 500 Sight Range 16 Robot Scan Range 12 Terrain Scan Range 16 Terrain Scan Density 210 Evasion (%) 55 Recoil Reduction 2 Offensive Hacking 15 Defensive Hacking 10 Item Schematics ----------------- Terrain Scanner | -10/Materials | Hacked Ion Engine | -10/Materials | Hacked Robot Schematics ------------------ None Fabricated ------------ Nothing Alien Tech Used ----------------- None Achievements -------------- None Challenges ------------ None RPGLIKE | -11 -10 -9 --------- Run | Yrd Mat Mat Levels Raised 2 | . 1 1 XP Earned 7205 | 3000 1680 2525 XP Spent 5975 | 2975 1450 1550 Upgrades 23 | 10 7 6 Propulsion Slot 1 | 1 . . Utility Slot 2 | 2 . . Weapon Slot 1 | 1 . . Core Integrity 2 | . 1 1 Heat Dissipation 1 | 1 . . Mass Support 1 | . 1 . Inventory Capacity 2 | . 2 . Sensor Range 6 | 3 1 2 Terrain Scan Density 2 | . 1 1 Hack Attack % 3 | 1 1 1 Hack Defense % 2 | 1 . 1 Protomatter Created 83 | . 57 26 Integrity Restored 72 | . 72 . Core 72 | . 72 . Protomatter Decayed 26 | . . 26 Game ------ Seed RegenerativeShadingSpecial Manual? 0 Play Time 00:08:04 Cumulative 768.5 hours Start 2024.06.18 @ 12:49:45 End 2024.06.18 @ 12:57:12 Sessions 1 Manual Loads 0 Difficulty Rogue Special Mode Winter2019/RPGLIKE Game No. 869 Rogue 591 Adventurer 124 Explorer 154 Win Type - Total 29 Types 23/0/4/1/0/0/0/1/0 Lore% 84 Gallery% 92 Achievement% 77 Wizard Run 0 Options --------- Layout 0 ASCII 0 Keyboard 1 Movement Numpad Keybinds 0 Fullscreen 2 Font 18/Terminus Map View 76x50 Zoom Use 0% Tactical HUD 1 Map Filters NONE Filters SHIFT_HUE(360) Steam 1 RUN: 213337e5-1fca-472f-b6d6-1f69f34f3ea1